{"text_format":"3","workbook":"xlsx","n_sheets":4,"sheets":["Pivottable","Dasboard","Sheet1","Database"],"not_rendered":{"charts":4,"macros":1,"defined_names":7,"pivot_tables":5},"read":"whole","date_system":"1900"}

{"sheet":"Pivottable","index":0,"n_rows":35,"n_cols":15,"rows_kept":35}
[]
[]
[null,"Provinsi","Sum of Pendaftar",null,"Tahun","Sum of Pendaftar",null,"Fakultas","Sum of Pendaftar",null,"jalur masuk","Sum of Pendaftar",null,"Provinsi",{"$f":"C3","v":"Sum of Pendaftar"}]
[null,"Bengkulu",0,null,2015,13216,null,"Hukum",7598,null,"Mandiri",{"v":0.007905138339920948,"d":"0.79%"},null,{"$f":"B4","v":"Bengkulu"},0]
[null,"Jambi",0,null,2016,21811,null,"kedokteran",432,null,"SNMPTN",{"v":0.6257108012401369,"d":"62.57%"},null,"Jambi",0]
[null,"Kepulauan Bangka Belitung",2971,null,2017,27958,null,"Kesehatan Masyarakat",198,null,"UTBK",{"v":0.3663840604199421,"d":"36.64%"},null,"Kepulauan Bangka Belitung",2971]
[null,"Kepulauan Riau",2402,null,2018,5072,null,"Perikanan dan kelautan",235,null,"Grand Total",{"v":1,"d":"100.00%"},null,"Kepulauan Riau",2402]
[null,"Lampung",1736,null,"Grand Total",68057,null,"Psikologi",14672,{"$nulls":4},"Lampung",1736]
[null,"Riau",0,{"$nulls":4},"Sains dan Matematika",5458,null,"jalur masuk",{"$f":"CUBEMEMBER(\"ThisWorkbookDataModel\",\"[Measures].[Sum of Pendaftar]\")","v":"Sum of Pendaftar"},null,"Riau",0]
[null,"Sumatera Barat",11451,{"$nulls":4},"Sastra dan Budaya",8140,null,{"$f":"CUBEMEMBER(\"ThisWorkbookDataModel\",\"[Table1].[Jalur Masuk].&[Mandiri]\")","v":"Mandiri"},{"$f":"CUBEVALUE(\"ThisWorkbookDataModel\",$K10,L$9,Slicer_Pulau)","v":538},null,"Sumatera Barat",11451]
[null,"Sumatera Selatan",42873,{"$nulls":4},"Sosial dan Politik",19439,null,{"$f":"CUBEMEMBER(\"ThisWorkbookDataModel\",\"[Table1].[Jalur Masuk].&[SNMPTN]\")","v":"SNMPTN"},{"$f":"CUBEVALUE(\"ThisWorkbookDataModel\",$K11,L$9,Slicer_Pulau)","v":42584},null,"Sumatera Selatan",42873]
[null,"Sumatera Utara",6624,{"$nulls":4},"Teknik",1676,null,{"$f":"CUBEMEMBER(\"ThisWorkbookDataModel\",\"[Table1].[Jalur Masuk].&[UTBK]\")","v":"UTBK"},{"$f":"CUBEVALUE(\"ThisWorkbookDataModel\",$K12,L$9,Slicer_Pulau)","v":24935},null,"Sumatera Utara",6624]
[null,"Grand Total",68057,{"$nulls":4},"Vokasi",10209,null,{"$f":"CUBEMEMBER(\"ThisWorkbookDataModel\",\"[Table1].[Jalur Masuk].[All]\",\"Grand Total\")","v":"Grand Total"},{"$f":"CUBEVALUE(\"ThisWorkbookDataModel\",$K13,L$9,Slicer_Pulau)","v":68057},null,"Grand Total",68057]
[{"$nulls":7},"Grand Total",68057,{"$nulls":4},0,0]
[{"$nulls":13},0,0]
[{"$nulls":13},0,0]
[{"$nulls":13},0,0]
[{"$nulls":13},0,0]
[{"$nulls":13},0,0]
[{"$nulls":13},0,0]
[{"$nulls":13},0,0]
[{"$nulls":13},0,0]
[{"$nulls":13},0,0]
[{"$nulls":13},0,0]
[{"$nulls":13},0,0]
[{"$nulls":13},0,0]
[{"$nulls":13},0,0]
[{"$nulls":13},0,0]
[{"$nulls":13},0,0]
[{"$nulls":13},0,0]
[{"$nulls":13},0,0]
[{"$nulls":13},0,0]
[{"$nulls":13},0,0]
[{"$nulls":13},0,0]
[{"$nulls":13},0,0]

{"sheet":"Dasboard","index":1,"n_rows":6,"n_cols":3,"rows_kept":6}
[]
[null,"jalur masuk","Sum of Pendaftar"]
[null,"Mandiri",538]
[null,"SNMPTN",42584]
[null,"UTBK",24935]
[null,"Grand Total",68057]

{"sheet":"Sheet1","index":2,"n_rows":194,"n_cols":6,"rows_kept":194}
["Tahun","Provinsi","Pulau","Fakultas","Jalur Masuk","Pendaftar"]
[2015,"DKI Jakarta","Jawa","Teknik","SNMPTN",12874]
[2015,"DKI Jakarta","Jawa","kedokteran","SNMPTN",2457]
[2016,"DKI Jakarta","Jawa","Hukum","SNMPTN",453]
[2016,"DKI Jakarta","Jawa","Sastra dan Budaya","SNMPTN",321]
[2017,"DKI Jakarta","Jawa","Hukum","SNMPTN",154]
[2017,"DKI Jakarta","Jawa","Perikanan dan kelautan","UTBK",72]
[2018,"DKI Jakarta","Jawa","Sains dan Matematika","SNMPTN",965]
[2018,"DKI Jakarta","Jawa","Sosial dan Politik","SNMPTN",808]
[2015,"Gorontalo","Sulawesi","Kesehatan Masyarakat","SNMPTN",2001]
[2015,"Gorontalo","Sulawesi","Psikologi","UTBK",255]
[2016,"Gorontalo","Sulawesi","Teknik","Mandiri",1269]
[2016,"Gorontalo","Sulawesi","kedokteran","UTBK",25]
[2017,"Gorontalo","Sulawesi","Hukum","UTBK",35]
[2017,"Gorontalo","Sulawesi","Sains dan Matematika","UTBK",6]
[2018,"Gorontalo","Sulawesi","Sosial dan Politik","UTBK",12939]
[2018,"Jawa Barat","Jawa","Kesehatan Masyarakat","UTBK",114]
[2015,"Jawa Barat","Jawa","Vokasi","UTBK",239]
[2015,"Jawa Barat","Jawa","Psikologi","UTBK",235]
[2016,"Jawa Barat","Jawa","Teknik","SNMPTN",2343]
[2016,"Jawa Barat","Jawa","kedokteran","SNMPTN",9753]
[2017,"Jawa Barat","Jawa","Hukum","UTBK",1698]
[2017,"Jawa Barat","Jawa","Sastra dan Budaya","SNMPTN",12818]
[2018,"Jawa Barat","Jawa","Pasca sarjana","UTBK",5001]
[2018,"Jawa Barat","Jawa","Perikanan dan kelautan","Mandiri",7267]
[2015,"Jawa Barat","Jawa","Sains dan Matematika","Mandiri",17787]
[2015,"Jawa Barat","Jawa","Sosial dan Politik","Mandiri",17886]
[2016,"Jawa Tengah","Jawa","Kesehatan Masyarakat","Mandiri",102076]
[2016,"Jawa Tengah","Jawa","Vokasi","Mandiri",3082]
[2017,"Jawa Tengah","Jawa","Psikologi","Mandiri",2845]
[2017,"Jawa Tengah","Jawa","Teknik","Mandiri",1052]
[2018,"Jawa Tengah","Jawa","kedokteran","SNMPTN",8412]
[2018,"Jawa Tengah","Jawa","Hukum","SNMPTN",7336]
[2015,"Jawa Tengah","Jawa","Sastra dan Budaya","SNMPTN",837]
[2015,"Jawa Tengah","Jawa","Hukum","SNMPTN",71014]
[2016,"Jawa Tengah","Jawa","Perikanan dan kelautan","UTBK",79]
[2016,"Jawa Tengah","Jawa","Sains dan Matematika","SNMPTN",12]
[2017,"Jawa Tengah","Jawa","Sosial dan Politik","SNMPTN",77]
[2017,"Jawa Timur","Jawa","Kesehatan Masyarakat","SNMPTN",15]
[2018,"Jawa Timur","Jawa","Vokasi","UTBK",981]
[2018,"Jawa Timur","Jawa","Psikologi","UTBK",988]
[2015,"Jawa Timur","Jawa","Teknik","SNMPTN",98]
[2015,"Jawa Timur","Jawa","kedokteran","SNMPTN",501]
[2016,"Jawa Timur","Jawa","Hukum","SNMPTN",388]
[2016,"Jawa Timur","Jawa","Sastra dan Budaya","SNMPTN",22]
[2017,"Jawa Timur","Jawa","Pasca sarjana","UTBK",258]
[2017,"Jawa Timur","Jawa","Hukum","SNMPTN",436]
[2018,"Jawa Timur","Jawa","Perikanan dan kelautan","UTBK",33]
[2018,"Jawa Timur","Jawa","Sains dan Matematika","SNMPTN",65]
[2015,"Jawa Timur","Jawa","Sosial dan Politik","SNMPTN",12]
[2015,"Kalimantan Barat","Kalimantan","Vokasi","UTBK",77]
[2016,"Kalimantan Barat","Kalimantan","Psikologi","UTBK",15]
[2016,"Kalimantan Barat","Kalimantan","Teknik","Mandiri",981]
[2017,"Kalimantan Barat","Kalimantan","kedokteran","SNMPTN",988]
[2017,"Kalimantan Barat","Kalimantan","Hukum","SNMPTN",98]
[2018,"Kalimantan Barat","Kalimantan","Sastra dan Budaya","SNMPTN",501]
[2018,"Kalimantan Barat","Kalimantan","Hukum","SNMPTN",388]
[2015,"Kalimantan Barat","Kalimantan","Sains dan Matematika","SNMPTN",22]
[2015,"Kalimantan Barat","Kalimantan","Sosial dan Politik","Mandiri",258]
[2016,"Kalimantan Selatan","Kalimantan","Vokasi","UTBK",436]
[2016,"Kalimantan Selatan","Kalimantan","Psikologi","UTBK",33]
[2017,"Kalimantan Selatan","Kalimantan","Sastra dan Budaya","SNMPTN",77]
[2017,"Kalimantan Selatan","Kalimantan","Sosial dan Politik","SNMPTN",15]
[2018,"Kalimantan Timur","Kalimantan","Kesehatan Masyarakat","SNMPTN",981]
[2018,"Kalimantan Timur","Kalimantan","Vokasi","UTBK",988]
[2015,"Kalimantan Timur","Kalimantan","Psikologi","UTBK",98]
[2015,"Kalimantan Timur","Kalimantan","Teknik","SNMPTN",501]
[2016,"Kalimantan Timur","Kalimantan","kedokteran","SNMPTN",388]
[2016,"Kalimantan Timur","Kalimantan","Sastra dan Budaya","SNMPTN",22]
[2017,"Kalimantan Timur","Kalimantan","Sosial dan Politik","SNMPTN",258]
[2017,"Kalimantan Utara","Kalimantan","Vokasi","UTBK",436]
[2018,"Kalimantan Utara","Kalimantan","Psikologi","UTBK",33]
[2018,"Kalimantan Utara","Kalimantan","Teknik","SNMPTN",65]
[2015,"Kalimantan Utara","Kalimantan","Sastra dan Budaya","SNMPTN",12]
[2015,"Kalimantan Utara","Kalimantan","Sosial dan Politik","SNMPTN",77]
[2016,"Kepulauan Bangka Belitung","Sumatera","Vokasi","UTBK",15]
[2016,"Kepulauan Bangka Belitung","Sumatera","Psikologi","UTBK",981]
[2017,"Kepulauan Bangka Belitung","Sumatera","Teknik","SNMPTN",988]
[2017,"Kepulauan Bangka Belitung","Sumatera","kedokteran","SNMPTN",98]
[2018,"Kepulauan Bangka Belitung","Sumatera","Sastra dan Budaya","SNMPTN",501]
[2018,"Kepulauan Bangka Belitung","Sumatera","Sosial dan Politik","SNMPTN",388]
[2015,"Kepulauan Riau","Sumatera","Vokasi","UTBK",22]
[2015,"Kepulauan Riau","Sumatera","Psikologi","Mandiri",258]
[2016,"Kepulauan Riau","Sumatera","Teknik","SNMPTN",61]
[2016,"Kepulauan Riau","Sumatera","kedokteran","UTBK",77]
[2017,"Kepulauan Riau","Sumatera","Hukum","SNMPTN",15]
[2017,"Kepulauan Riau","Sumatera","Sains dan Matematika","SNMPTN",981]
[2018,"Kepulauan Riau","Sumatera","Sosial dan Politik","SNMPTN",988]
[2018,"Lampung","Sumatera","Vokasi","UTBK",98]
[2015,"Lampung","Sumatera","Psikologi","UTBK",501]
[2015,"Lampung","Sumatera","Teknik","SNMPTN",388]
[2016,"Lampung","Sumatera","kedokteran","Mandiri",22]
[2016,"Lampung","Sumatera","Sastra dan Budaya","Mandiri",258]
[2017,"Lampung","Sumatera","Sains dan Matematika","SNMPTN",436]
[2017,"Lampung","Sumatera","Sosial dan Politik","SNMPTN",33]
[2018,"Maluku","Maluku-Papua","Kesehatan Masyarakat","SNMPTN",65]
[2018,"Maluku","Maluku-Papua","Vokasi","UTBK",12]
[2015,"Maluku","Maluku-Papua","Psikologi","UTBK",77]
[2015,"Maluku","Maluku-Papua","Teknik","SNMPTN",15]
[2016,"Maluku","Maluku-Papua","kedokteran","SNMPTN",981]
[2016,"Maluku","Maluku-Papua","Sains dan Matematika","SNMPTN",988]
[2017,"Maluku","Maluku-Papua","Sosial dan Politik","SNMPTN",98]
[2017,"Maluku Utara","Maluku-Papua","Kesehatan Masyarakat","SNMPTN",501]
[2018,"Maluku Utara","Maluku-Papua","Vokasi","UTBK",388]
[2018,"Maluku Utara","Maluku-Papua","Psikologi","UTBK",22]
[2015,"Maluku Utara","Maluku-Papua","Teknik","SNMPTN",258]
[2015,"Maluku Utara","Maluku-Papua","kedokteran","SNMPTN",321]
[2016,"Maluku Utara","Maluku-Papua","Hukum","SNMPTN",154]
[2016,"Maluku Utara","Maluku-Papua","Sains dan Matematika","SNMPTN",72]
[2017,"Maluku Utara","Maluku-Papua","Sosial dan Politik","SNMPTN",965]
[2017,"Nusa Tenggara Barat","Bali-Nusa Tenggara","Kesehatan Masyarakat","SNMPTN",808]
[2018,"Nusa Tenggara Barat","Bali-Nusa Tenggara","Vokasi","UTBK",2001]
[2018,"Nusa Tenggara Barat","Bali-Nusa Tenggara","Psikologi","UTBK",255]
[2015,"Nusa Tenggara Barat","Bali-Nusa Tenggara","Teknik","SNMPTN",1269]
[2015,"Nusa Tenggara Barat","Bali-Nusa Tenggara","kedokteran","SNMPTN",25]
[2016,"Nusa Tenggara Barat","Bali-Nusa Tenggara","Sastra dan Budaya","SNMPTN",35]
[2016,"Nusa Tenggara Barat","Bali-Nusa Tenggara","Pasca sarjana","UTBK",6]
[2017,"Nusa Tenggara Barat","Bali-Nusa Tenggara","Hukum","SNMPTN",12939]
[2017,"Nusa Tenggara Barat","Bali-Nusa Tenggara","Sains dan Matematika","SNMPTN",114]
[2018,"Nusa Tenggara Barat","Bali-Nusa Tenggara","Sosial dan Politik","SNMPTN",239]
[2018,"Nusa Tenggara Timur","Bali-Nusa Tenggara","Kesehatan Masyarakat","SNMPTN",235]
[2015,"Nusa Tenggara Timur","Bali-Nusa Tenggara","Vokasi","UTBK",2343]
[2015,"Nusa Tenggara Timur","Bali-Nusa Tenggara","Psikologi","UTBK",9753]
[2016,"Nusa Tenggara Timur","Bali-Nusa Tenggara","Teknik","SNMPTN",1698]
[2016,"Nusa Tenggara Timur","Bali-Nusa Tenggara","kedokteran","SNMPTN",12818]
[2017,"Nusa Tenggara Timur","Bali-Nusa Tenggara","Sastra dan Budaya","SNMPTN",5001]
[2017,"Nusa Tenggara Timur","Bali-Nusa Tenggara","Pasca sarjana","UTBK",7267]
[2018,"Nusa Tenggara Timur","Bali-Nusa Tenggara","Hukum","SNMPTN",17787]
[2018,"Nusa Tenggara Timur","Bali-Nusa Tenggara","Sains dan Matematika","SNMPTN",198]
[2015,"Nusa Tenggara Timur","Bali-Nusa Tenggara","Sosial dan Politik","SNMPTN",321]
[2015,"Papua Barat","Maluku-Papua","Kesehatan Masyarakat","SNMPTN",154]
[2016,"Papua Barat","Maluku-Papua","Vokasi","UTBK",72]
[2016,"Papua Barat","Maluku-Papua","Psikologi","UTBK",965]
[2017,"Papua Barat","Maluku-Papua","Teknik","SNMPTN",808]
[2017,"Papua Barat","Maluku-Papua","kedokteran","SNMPTN",2001]
[2018,"Papua Barat","Maluku-Papua","Sastra dan Budaya","SNMPTN",255]
[2018,"Papua Barat","Maluku-Papua","Hukum","SNMPTN",1269]
[2015,"Papua Barat","Maluku-Papua","Sains dan Matematika","SNMPTN",25]
[2015,"Papua Barat","Maluku-Papua","Sosial dan Politik","SNMPTN",35]
[2016,"Sulawesi Barat","Sulawesi","Psikologi","UTBK",6]
[2016,"Sulawesi Selatan","Sulawesi","Kesehatan Masyarakat","SNMPTN",12939]
[2017,"Sulawesi Selatan","Sulawesi","Vokasi","UTBK",114]
[2017,"Sulawesi Selatan","Sulawesi","Psikologi","UTBK",239]
[2018,"Sulawesi Selatan","Sulawesi","Teknik","SNMPTN",235]
[2018,"Sulawesi Selatan","Sulawesi","kedokteran","SNMPTN",2343]
[2015,"Sulawesi Selatan","Sulawesi","Hukum","SNMPTN",9753]
[2015,"Sulawesi Selatan","Sulawesi","Sastra dan Budaya","SNMPTN",1698]
[2016,"Sulawesi Selatan","Sulawesi","Pasca sarjana","UTBK",12818]
[2016,"Sulawesi Selatan","Sulawesi","Hukum","SNMPTN",5001]
[2017,"Sulawesi Selatan","Sulawesi","Sains dan Matematika","SNMPTN",7267]
[2017,"Sulawesi Selatan","Sulawesi","Sosial dan Politik","SNMPTN",17787]
[2018,"Sulawesi Tengah","Sulawesi","Kesehatan Masyarakat","SNMPTN",436]
[2018,"Sulawesi Tengah","Sulawesi","Vokasi","UTBK",33]
[2015,"Sulawesi Tengah","Sulawesi","Psikologi","UTBK",77]
[2015,"Sulawesi Tengah","Sulawesi","Teknik","SNMPTN",15]
[2016,"Sulawesi Tengah","Sulawesi","kedokteran","SNMPTN",981]
[2016,"Sulawesi Tengah","Sulawesi","Hukum","SNMPTN",988]
[2017,"Sulawesi Tengah","Sulawesi","Sains dan Matematika","SNMPTN",98]
[2017,"Sulawesi Tenggara","Sulawesi","Kesehatan Masyarakat","SNMPTN",501]
[2018,"Sulawesi Tenggara","Sulawesi","Vokasi","UTBK",388]
[2018,"Sulawesi Tenggara","Sulawesi","Psikologi","UTBK",22]
[2015,"Sulawesi Tenggara","Sulawesi","Teknik","SNMPTN",258]
[2015,"Sulawesi Tenggara","Sulawesi","kedokteran","SNMPTN",436]
[2016,"Sulawesi Tenggara","Sulawesi","Sastra dan Budaya","SNMPTN",33]
[2016,"Sulawesi Tenggara","Sulawesi","Hukum","SNMPTN",65]
[2017,"Sulawesi Tenggara","Sulawesi","Sains dan Matematika","SNMPTN",12]
[2017,"Sulawesi Tenggara","Sulawesi","Sosial dan Politik","SNMPTN",77]
[2018,"Sulawesi Utara","Sulawesi","Kesehatan Masyarakat","SNMPTN",15]
[2018,"Sulawesi Utara","Sulawesi","Vokasi","UTBK",981]
[2015,"Sulawesi Utara","Sulawesi","Psikologi","UTBK",988]
[2015,"Sulawesi Utara","Sulawesi","Teknik","SNMPTN",98]
[2016,"Sulawesi Utara","Sulawesi","kedokteran","SNMPTN",501]
[2016,"Sulawesi Utara","Sulawesi","Sastra dan Budaya","SNMPTN",388]
[2017,"Sulawesi Utara","Sulawesi","Hukum","SNMPTN",114]
[2017,"Sulawesi Utara","Sulawesi","Perikanan dan kelautan","UTBK",239]
[2018,"Sulawesi Utara","Sulawesi","Sains dan Matematika","SNMPTN",235]
[2018,"Sulawesi Utara","Sulawesi","Sosial dan Politik","SNMPTN",2343]
[2015,"Sumatera Barat","Sumatera","Vokasi","UTBK",9753]
[2015,"Sumatera Barat","Sumatera","Sains dan Matematika","SNMPTN",1698]
[2016,"Sumatera Selatan","Sumatera","Psikologi","UTBK",12818]
[2016,"Sumatera Selatan","Sumatera","Hukum","SNMPTN",5001]
[2017,"Sumatera Selatan","Sumatera","Sastra dan Budaya","SNMPTN",7267]
[2017,"Sumatera Selatan","Sumatera","Sosial dan Politik","SNMPTN",17787]
[2018,"Sumatera Utara","Sumatera","Kesehatan Masyarakat","SNMPTN",198]
[2018,"Sumatera Utara","Sumatera","Vokasi","UTBK",321]
[2015,"Sumatera Utara","Sumatera","Psikologi","UTBK",114]
[2015,"Sumatera Utara","Sumatera","Teknik","SNMPTN",239]
[2016,"Sumatera Utara","Sumatera","kedokteran","SNMPTN",235]
[2016,"Sumatera Utara","Sumatera","Hukum","SNMPTN",2343]
[2017,"Sumatera Utara","Sumatera","Sastra dan Budaya","SNMPTN",114]
[2017,"Sumatera Utara","Sumatera","Hukum","SNMPTN",239]
[2018,"Sumatera Utara","Sumatera","Perikanan dan kelautan","UTBK",235]
[2018,"Sumatera Utara","Sumatera","Sains dan Matematika","SNMPTN",2343]
[2015,"Sumatera Utara","Sumatera","Sosial dan Politik","SNMPTN",243]

{"sheet":"Database","index":3,"n_rows":203,"n_cols":6,"rows_kept":203}
["Tahun","Provinsi","Pulau","Fakultas","Jalur Masuk","Pendaftar"]
[2015,"DKI Jakarta","Jawa","Teknik","SNMPTN",12874]
[2015,"DKI Jakarta","Jawa","kedokteran","SNMPTN",2457]
[2016,"DKI Jakarta","Jawa","Hukum","SNMPTN",453]
[2016,"DKI Jakarta","Jawa","Sastra dan Budaya","SNMPTN",321]
[2017,"DKI Jakarta","Jawa","Hukum","SNMPTN",154]
[2017,"DKI Jakarta","Jawa","Perikanan dan kelautan","UTBK",72]
[2018,"DKI Jakarta","Jawa","Sains dan Matematika","SNMPTN",965]
[2018,"DKI Jakarta","Jawa","Sosial dan Politik","SNMPTN",808]
[2015,"Gorontalo","Sulawesi","Kesehatan Masyarakat","SNMPTN",2001]
[2015,"Gorontalo","Sulawesi","Psikologi","UTBK",255]
[2016,"Gorontalo","Sulawesi","Teknik","Mandiri",1269]
[2016,"Gorontalo","Sulawesi","kedokteran","UTBK",25]
[2017,"Gorontalo","Sulawesi","Hukum","UTBK",35]
[2017,"Gorontalo","Sulawesi","Sains dan Matematika","UTBK",6]
[2018,"Gorontalo","Sulawesi","Sosial dan Politik","UTBK",12939]
[2018,"Jawa Barat","Jawa","Kesehatan Masyarakat","UTBK",114]
[2015,"Jawa Barat","Jawa","Vokasi","UTBK",239]
[2015,"Jawa Barat","Jawa","Psikologi","UTBK",235]
[2016,"Jawa Barat","Jawa","Teknik","SNMPTN",2343]
[2016,"Jawa Barat","Jawa","kedokteran","SNMPTN",9753]
[2017,"Jawa Barat","Jawa","Hukum","UTBK",1698]
[2017,"Jawa Barat","Jawa","Sastra dan Budaya","SNMPTN",12818]
[2018,"Jawa Barat","Jawa","Pasca sarjana","UTBK",5001]
[2018,"Jawa Barat","Jawa","Perikanan dan kelautan","Mandiri",7267]
[2015,"Jawa Barat","Jawa","Sains dan Matematika","Mandiri",17787]
[2015,"Jawa Barat","Jawa","Sosial dan Politik","Mandiri",17886]
[2016,"Jawa Tengah","Jawa","Kesehatan Masyarakat","Mandiri",102076]
[2016,"Jawa Tengah","Jawa","Vokasi","Mandiri",3082]
[2017,"Jawa Tengah","Jawa","Psikologi","Mandiri",2845]
[2017,"Jawa Tengah","Jawa","Teknik","Mandiri",1052]
[2018,"Jawa Tengah","Jawa","kedokteran","SNMPTN",8412]
[2018,"Jawa Tengah","Jawa","Hukum","SNMPTN",7336]
[2015,"Jawa Tengah","Jawa","Sastra dan Budaya","SNMPTN",837]
[2015,"Jawa Tengah","Jawa","Hukum","SNMPTN",71014]
[2016,"Jawa Tengah","Jawa","Perikanan dan kelautan","UTBK",79]
[2016,"Jawa Tengah","Jawa","Sains dan Matematika","SNMPTN",12]
[2017,"Jawa Tengah","Jawa","Sosial dan Politik","SNMPTN",77]
[2017,"Jawa Timur","Jawa","Kesehatan Masyarakat","SNMPTN",15]
[2018,"Jawa Timur","Jawa","Vokasi","UTBK",981]
[2018,"Jawa Timur","Jawa","Psikologi","UTBK",988]
[2015,"Jawa Timur","Jawa","Teknik","SNMPTN",98]
[2015,"Jawa Timur","Jawa","kedokteran","SNMPTN",501]
[2016,"Jawa Timur","Jawa","Hukum","SNMPTN",388]
[2016,"Jawa Timur","Jawa","Sastra dan Budaya","SNMPTN",22]
[2017,"Jawa Timur","Jawa","Pasca sarjana","UTBK",258]
[2017,"Jawa Timur","Jawa","Hukum","SNMPTN",436]
[2018,"Jawa Timur","Jawa","Perikanan dan kelautan","UTBK",33]
[2018,"Jawa Timur","Jawa","Sains dan Matematika","SNMPTN",65]
[2015,"Jawa Timur","Jawa","Sosial dan Politik","SNMPTN",12]
[2015,"Kalimantan Barat","Kalimantan","Vokasi","UTBK",77]
[2016,"Kalimantan Barat","Kalimantan","Psikologi","UTBK",15]
[2016,"Kalimantan Barat","Kalimantan","Teknik","Mandiri",981]
[2017,"Kalimantan Barat","Kalimantan","kedokteran","SNMPTN",988]
[2017,"Kalimantan Barat","Kalimantan","Hukum","SNMPTN",98]
[2018,"Kalimantan Barat","Kalimantan","Sastra dan Budaya","SNMPTN",501]
[2018,"Kalimantan Barat","Kalimantan","Hukum","SNMPTN",388]
[2015,"Kalimantan Barat","Kalimantan","Sains dan Matematika","SNMPTN",22]
[2015,"Kalimantan Barat","Kalimantan","Sosial dan Politik","Mandiri",258]
[2016,"Kalimantan Selatan","Kalimantan","Vokasi","UTBK",436]
[2016,"Kalimantan Selatan","Kalimantan","Psikologi","UTBK",33]
[2017,"Kalimantan Selatan","Kalimantan","Sastra dan Budaya","SNMPTN",77]
[2017,"Kalimantan Selatan","Kalimantan","Sosial dan Politik","SNMPTN",15]
[2018,"Kalimantan Timur","Kalimantan","Kesehatan Masyarakat","SNMPTN",981]
[2018,"Kalimantan Timur","Kalimantan","Vokasi","UTBK",988]
[2015,"Kalimantan Timur","Kalimantan","Psikologi","UTBK",98]
[2015,"Kalimantan Timur","Kalimantan","Teknik","SNMPTN",501]
[2016,"Kalimantan Timur","Kalimantan","kedokteran","SNMPTN",388]
[2016,"Kalimantan Timur","Kalimantan","Sastra dan Budaya","SNMPTN",22]
[2017,"Kalimantan Timur","Kalimantan","Sosial dan Politik","SNMPTN",258]
[2017,"Kalimantan Utara","Kalimantan","Vokasi","UTBK",436]
[2018,"Kalimantan Utara","Kalimantan","Psikologi","UTBK",33]
[2018,"Kalimantan Utara","Kalimantan","Teknik","SNMPTN",65]
[2015,"Kalimantan Utara","Kalimantan","Sastra dan Budaya","SNMPTN",12]
[2015,"Kalimantan Utara","Kalimantan","Sosial dan Politik","SNMPTN",77]
[2016,"Kepulauan Bangka Belitung","Sumatera","Vokasi","UTBK",15]
[2016,"Kepulauan Bangka Belitung","Sumatera","Psikologi","UTBK",981]
[2017,"Kepulauan Bangka Belitung","Sumatera","Teknik","SNMPTN",988]
[2017,"Kepulauan Bangka Belitung","Sumatera","kedokteran","SNMPTN",98]
[2018,"Kepulauan Bangka Belitung","Sumatera","Sastra dan Budaya","SNMPTN",501]
[2018,"Kepulauan Bangka Belitung","Sumatera","Sosial dan Politik","SNMPTN",388]
[2015,"Kepulauan Riau","Sumatera","Vokasi","UTBK",22]
[2015,"Kepulauan Riau","Sumatera","Psikologi","Mandiri",258]
[2016,"Kepulauan Riau","Sumatera","Teknik","SNMPTN",61]
[2016,"Kepulauan Riau","Sumatera","kedokteran","UTBK",77]
[2017,"Kepulauan Riau","Sumatera","Hukum","SNMPTN",15]
[2017,"Kepulauan Riau","Sumatera","Sains dan Matematika","SNMPTN",981]
[2018,"Kepulauan Riau","Sumatera","Sosial dan Politik","SNMPTN",988]
[2018,"Lampung","Sumatera","Vokasi","UTBK",98]
[2015,"Lampung","Sumatera","Psikologi","UTBK",501]
[2015,"Lampung","Sumatera","Teknik","SNMPTN",388]
[2016,"Lampung","Sumatera","kedokteran","Mandiri",22]
[2016,"Lampung","Sumatera","Sastra dan Budaya","Mandiri",258]
[2017,"Lampung","Sumatera","Sains dan Matematika","SNMPTN",436]
[2017,"Lampung","Sumatera","Sosial dan Politik","SNMPTN",33]
[2018,"Maluku","Maluku-Papua","Kesehatan Masyarakat","SNMPTN",65]
[2018,"Maluku","Maluku-Papua","Vokasi","UTBK",12]
[2015,"Maluku","Maluku-Papua","Psikologi","UTBK",77]
[2015,"Maluku","Maluku-Papua","Teknik","SNMPTN",15]
[2016,"Maluku","Maluku-Papua","kedokteran","SNMPTN",981]
[2016,"Maluku","Maluku-Papua","Sains dan Matematika","SNMPTN",988]
[2017,"Maluku","Maluku-Papua","Sosial dan Politik","SNMPTN",98]
[2017,"Maluku Utara","Maluku-Papua","Kesehatan Masyarakat","SNMPTN",501]
[2018,"Maluku Utara","Maluku-Papua","Vokasi","UTBK",388]
[2018,"Maluku Utara","Maluku-Papua","Psikologi","UTBK",22]
[2015,"Maluku Utara","Maluku-Papua","Teknik","SNMPTN",258]
[2015,"Maluku Utara","Maluku-Papua","kedokteran","SNMPTN",321]
[2016,"Maluku Utara","Maluku-Papua","Hukum","SNMPTN",154]
[2016,"Maluku Utara","Maluku-Papua","Sains dan Matematika","SNMPTN",72]
[2017,"Maluku Utara","Maluku-Papua","Sosial dan Politik","SNMPTN",965]
[2017,"Nusa Tenggara Barat","Bali-Nusa Tenggara","Kesehatan Masyarakat","SNMPTN",808]
[2018,"Nusa Tenggara Barat","Bali-Nusa Tenggara","Vokasi","UTBK",2001]
[2018,"Nusa Tenggara Barat","Bali-Nusa Tenggara","Psikologi","UTBK",255]
[2015,"Nusa Tenggara Barat","Bali-Nusa Tenggara","Teknik","SNMPTN",1269]
[2015,"Nusa Tenggara Barat","Bali-Nusa Tenggara","kedokteran","SNMPTN",25]
[2016,"Nusa Tenggara Barat","Bali-Nusa Tenggara","Sastra dan Budaya","SNMPTN",35]
[2016,"Nusa Tenggara Barat","Bali-Nusa Tenggara","Pasca sarjana","UTBK",6]
[2017,"Nusa Tenggara Barat","Bali-Nusa Tenggara","Hukum","SNMPTN",12939]
[2017,"Nusa Tenggara Barat","Bali-Nusa Tenggara","Sains dan Matematika","SNMPTN",114]
[2018,"Nusa Tenggara Barat","Bali-Nusa Tenggara","Sosial dan Politik","SNMPTN",239]
[2018,"Nusa Tenggara Timur","Bali-Nusa Tenggara","Kesehatan Masyarakat","SNMPTN",235]
[2015,"Nusa Tenggara Timur","Bali-Nusa Tenggara","Vokasi","UTBK",2343]
[2015,"Nusa Tenggara Timur","Bali-Nusa Tenggara","Psikologi","UTBK",9753]
[2016,"Nusa Tenggara Timur","Bali-Nusa Tenggara","Teknik","SNMPTN",1698]
[2016,"Nusa Tenggara Timur","Bali-Nusa Tenggara","kedokteran","SNMPTN",12818]
[2017,"Nusa Tenggara Timur","Bali-Nusa Tenggara","Sastra dan Budaya","SNMPTN",5001]
[2017,"Nusa Tenggara Timur","Bali-Nusa Tenggara","Pasca sarjana","UTBK",7267]
[2018,"Nusa Tenggara Timur","Bali-Nusa Tenggara","Hukum","SNMPTN",17787]
[2018,"Nusa Tenggara Timur","Bali-Nusa Tenggara","Sains dan Matematika","SNMPTN",198]
[2015,"Nusa Tenggara Timur","Bali-Nusa Tenggara","Sosial dan Politik","SNMPTN",321]
[2015,"Papua Barat","Maluku-Papua","Kesehatan Masyarakat","SNMPTN",154]
[2016,"Papua Barat","Maluku-Papua","Vokasi","UTBK",72]
[2016,"Papua Barat","Maluku-Papua","Psikologi","UTBK",965]
[2017,"Papua Barat","Maluku-Papua","Teknik","SNMPTN",808]
[2017,"Papua Barat","Maluku-Papua","kedokteran","SNMPTN",2001]
[2018,"Papua Barat","Maluku-Papua","Sastra dan Budaya","SNMPTN",255]
[2018,"Papua Barat","Maluku-Papua","Hukum","SNMPTN",1269]
[2015,"Papua Barat","Maluku-Papua","Sains dan Matematika","SNMPTN",25]
[2015,"Papua Barat","Maluku-Papua","Sosial dan Politik","SNMPTN",35]
[2016,"Sulawesi Barat","Sulawesi","Psikologi","UTBK",6]
[2016,"Sulawesi Selatan","Sulawesi","Kesehatan Masyarakat","SNMPTN",12939]
[2017,"Sulawesi Selatan","Sulawesi","Vokasi","UTBK",114]
[2017,"Sulawesi Selatan","Sulawesi","Psikologi","UTBK",239]
[2018,"Sulawesi Selatan","Sulawesi","Teknik","SNMPTN",235]
[2018,"Sulawesi Selatan","Sulawesi","kedokteran","SNMPTN",2343]
[2015,"Sulawesi Selatan","Sulawesi","Hukum","SNMPTN",9753]
[2015,"Sulawesi Selatan","Sulawesi","Sastra dan Budaya","SNMPTN",1698]
[2016,"Sulawesi Selatan","Sulawesi","Pasca sarjana","UTBK",12818]
[2016,"Sulawesi Selatan","Sulawesi","Hukum","SNMPTN",5001]
[2017,"Sulawesi Selatan","Sulawesi","Sains dan Matematika","SNMPTN",7267]
[2017,"Sulawesi Selatan","Sulawesi","Sosial dan Politik","SNMPTN",17787]
[2018,"Sulawesi Tengah","Sulawesi","Kesehatan Masyarakat","SNMPTN",436]
[2018,"Sulawesi Tengah","Sulawesi","Vokasi","UTBK",33]
[2015,"Sulawesi Tengah","Sulawesi","Psikologi","UTBK",77]
[2015,"Sulawesi Tengah","Sulawesi","Teknik","SNMPTN",15]
[2016,"Sulawesi Tengah","Sulawesi","kedokteran","SNMPTN",981]
[2016,"Sulawesi Tengah","Sulawesi","Hukum","SNMPTN",988]
[2017,"Sulawesi Tengah","Sulawesi","Sains dan Matematika","SNMPTN",98]
[2017,"Sulawesi Tenggara","Sulawesi","Kesehatan Masyarakat","SNMPTN",501]
[2018,"Sulawesi Tenggara","Sulawesi","Vokasi","UTBK",388]
[2018,"Sulawesi Tenggara","Sulawesi","Psikologi","UTBK",22]
[2015,"Sulawesi Tenggara","Sulawesi","Teknik","SNMPTN",258]
[2015,"Sulawesi Tenggara","Sulawesi","kedokteran","SNMPTN",436]
[2016,"Sulawesi Tenggara","Sulawesi","Sastra dan Budaya","SNMPTN",33]
[2016,"Sulawesi Tenggara","Sulawesi","Hukum","SNMPTN",65]
[2017,"Sulawesi Tenggara","Sulawesi","Sains dan Matematika","SNMPTN",12]
[2017,"Sulawesi Tenggara","Sulawesi","Sosial dan Politik","SNMPTN",77]
[2018,"Sulawesi Utara","Sulawesi","Kesehatan Masyarakat","SNMPTN",15]
[2018,"Sulawesi Utara","Sulawesi","Vokasi","UTBK",981]
[2015,"Sulawesi Utara","Sulawesi","Psikologi","UTBK",988]
[2015,"Sulawesi Utara","Sulawesi","Teknik","SNMPTN",98]
[2016,"Sulawesi Utara","Sulawesi","kedokteran","SNMPTN",501]
[2016,"Sulawesi Utara","Sulawesi","Sastra dan Budaya","SNMPTN",388]
[2017,"Sulawesi Utara","Sulawesi","Hukum","SNMPTN",114]
[2017,"Sulawesi Utara","Sulawesi","Perikanan dan kelautan","UTBK",239]
[2018,"Sulawesi Utara","Sulawesi","Sains dan Matematika","SNMPTN",235]
[2018,"Sulawesi Utara","Sulawesi","Sosial dan Politik","SNMPTN",2343]
[2015,"Sumatera Barat","Sumatera","Vokasi","UTBK",9753]
[2015,"Sumatera Barat","Sumatera","Sains dan Matematika","SNMPTN",1698]
[2016,"Sumatera Selatan","Sumatera","Psikologi","UTBK",12818]
[2016,"Sumatera Selatan","Sumatera","Hukum","SNMPTN",5001]
[2017,"Sumatera Selatan","Sumatera","Sastra dan Budaya","SNMPTN",7267]
[2017,"Sumatera Selatan","Sumatera","Sosial dan Politik","SNMPTN",17787]
[2018,"Sumatera Utara","Sumatera","Kesehatan Masyarakat","SNMPTN",198]
[2018,"Sumatera Utara","Sumatera","Vokasi","UTBK",321]
[2015,"Sumatera Utara","Sumatera","Psikologi","UTBK",114]
[2015,"Sumatera Utara","Sumatera","Teknik","SNMPTN",239]
[2016,"Sumatera Utara","Sumatera","kedokteran","SNMPTN",235]
[2016,"Sumatera Utara","Sumatera","Hukum","SNMPTN",2343]
[2017,"Sumatera Utara","Sumatera","Sastra dan Budaya","SNMPTN",114]
[2017,"Sumatera Utara","Sumatera","Hukum","SNMPTN",239]
[2018,"Sumatera Utara","Sumatera","Perikanan dan kelautan","UTBK",235]
[2018,"Sumatera Utara","Sumatera","Sains dan Matematika","SNMPTN",2343]
[2015,"Sumatera Utara","Sumatera","Sosial dan Politik","SNMPTN",243]
[2015,"Papua","Maluku-Papua","Kesehatan Masyarakat","SNMPTN",0]
[2016,"Banten","Jawa","Vokasi","UTBK",0]
[2016,"Bengkulu","Sumatera","Psikologi","UTBK",0]
[2017,"Riau","Sumatera","Teknik","SNMPTN",0]
[2017,"Yogyakarta","Jawa","kedokteran","SNMPTN",0]
[2018,"Kalimantan Tengah","Kalimantan","Hukum","SNMPTN",0]
[2018,"Jambi","Sumatera","Sastra dan Budaya","SNMPTN",0]
[2015,"Bali","Bali-Nusa Tenggara","Hukum","Mandiri",1000]
[2016,"Bali","Bali-Nusa Tenggara","Teknik","Mandiri",1000]